Cogmind - Beta 11.1 @@@ ROGUE MODE // 2022.07.19 @ 18:17:01 Player: 3.14 Result: Self-destructed Performance ------------- Evolutions (3) 1500 Regions Visited (10) 2000 Robots Destroyed (105) 525 Value Destroyed (2592) 2592 Prototype IDs (216) 4320 Alien Tech Used (0) 0 Bonus (3377) 3377 TOTAL SCORE: 14314 Bonus ------- High Alert Combat Kills 77 Met Data Miner 300 Used Data Conduit 3000 Cogmind --------- Core Integrity 541/700 Matter 300/300 Energy 68/100 System Corruption 0% Temperature Cool (3) Movement Flying (29) Location -6/Proximity Caves Parts ------- > --- POWER (1) -------- (None) > --- PROPULSION (4) --- Improved VTOL Module Improved VTOL Module Improved VTOL Module Improved Cesium-ion Thruster > --- UTILITY (6) ------ Improved Sensor Array Improved Signal Interpreter Improved Utility Shielding Improved Hacking Suite Improved Hacking Suite Improved Hacking Suite > --- WEAPON (2) ------- Plasma Sword > --- INVENTORY (5) ---- Improved Medium Armor Plating System Mapper Quantum Router Improved Grenade Launcher Peak State ------------ > --- POWER ------------ Light Angular Momentum Engine > --- PROPULSION ------- VTOL Module Improved VTOL Module Improved VTOL Module Improved Cesium-ion Thruster > --- UTILITY ---------- Improved Signal Interpreter Improved Utility Shielding Improved Medium Armor Plating Improved Hacking Suite Improved Hacking Suite Improved Hacking Suite > --- WEAPON ----------- Datajack Plasma Sword > --- INVENTORY -------- Improved VTOL Module Improved Sensor Array Improved Hacking Suite Quantum Router Improved Grenade Launcher [Rating: 55] Favorites ----------- Power Light Deuterium Engine Engine Light Deuterium Engine Propulsion Improved VTOL Module Treads Light Treads Leg Aluminum Leg Flight Unit Improved VTOL Module Utility Hacking Suite Device Heat Sink Storage High-capacity Storage Unit Processor Improved Signal Interpreter Hackware Hacking Suite Protection Improved Medium Armor Plating Weapon Heavy Assault Rifle Energy Gun Improved Medium Laser Ballistic Gun Heavy Assault Rifle Launcher Improved Grenade Launcher Slashing Weapon Plasma Sword Special Melee Weapon Datajack Build | -11 -10 -9 -8 -7 -7 -7 -7 -7 -7 -6 ------- Run | Scr Mat Mat Mat Fac Was Fac Low Low Dat Pro Slots Evolved 6 | . . 2 2 2 . . . . . . Power . | . . . . . . . . . . . Propulsion 2 | . . . 2 . . . . . . . Utility 4 | . . 2 . 2 . . . . . . Weapon . | . . . . . . . . . . . Parts Attached 128 | . 9 17 48 14 1 30 2 . 4 3 Power 11 | . 2 1 3 1 . 2 . . 2 . Engine 11 | . 2 1 3 1 . 2 . . 2 . Core . | . . . . . . . . . . . Reactor . | . . . . . . . . . . . Propulsion 39 | . 3 4 21 4 . 6 . . . 1 Treads 26 | . 2 4 20 . . . . . . . Leg 1 | . 1 . . . . . . . . . Wheel . | . . . . . . . . . . . Hover . | . . . . . . . . . . . Flight 12 | . . . 1 4 . 6 . . . 1 Utility 44 | . 3 4 10 7 . 17 . . 2 1 Device 18 | . 1 2 6 1 . 7 . . . 1 Storage 3 | . 2 1 . . . . . . . . Processor 2 | . . . 1 1 . . . . . . Hackware 13 | . . . . 5 . 8 . . . . Protection 8 | . . 1 3 . . 2 . . 2 . Artifact . | . . . . . . . . . . . Weapon 34 | . 1 8 14 2 1 5 2 . . 1 Energy Gun 6 | . 1 2 3 . . . . . . . Energy Cannon . | . . . . . . . . . . . Ballistic Gun 15 | . . 5 9 . . . . . . 1 Ballistic Cannon . | . . . . . . . . . . . Launcher 2 | . . . . . . 1 1 . . . Special Weapon . | . . . . . . . . . . . Impact Weapon . | . . . . . . . . . . . Slashing Weapon 9 | . . 1 2 1 1 3 1 . . . Piercing Weapon . | . . . . . . . . . . . Special Melee Weapon 2 | . . . . 1 . 1 . . . . Unidentified Prototypes 4 | . . 1 1 . 1 1 . . . . Parts Lost 9 | . . 1 2 . . 3 . . 3 . Power 2 | . . . . . . 1 . . 1 . Propulsion 3 | . . . 1 . . 1 . . 1 . Utility 2 | . . 1 1 . . . . . . . Weapon 2 | . . . . . . 1 . . 1 . Highest Loss Streak 3 | . . 1 1 . . 3 . . 3 . To Critical Strikes . | . . . . . . . . . . . Average Slot Usage (%) 94 | . 98 85 98 98 100 93 100 100 100 84 Engine 9 | . 14 11 9 7 7 7 7 7 7 . Treads 14 | . 6 22 35 1 . . . . . . Leg 3 | . 21 . . . . . . . . . Flight 11 | . . . . 28 30 30 30 30 30 30 Device 12 | . 12 15 20 3 7 5 7 7 3 5 Storage 6 | . 14 11 9 . . . . . . . Processor 3 | . . . 2 6 7 7 7 7 7 7 Hackware 11 | . . . . 31 30 30 30 30 26 23 Protection 1 | . . 3 3 . . . . . 7 8 Energy Gun 4 | . 14 7 4 . . . . . . . Ballistic Gun 8 | . 14 14 12 . . . . . . . Slashing Weapon 2 | . . . . 7 7 6 6 7 7 7 Special Melee Weapon 1 | . . . . 6 7 3 7 7 7 . Naked Turns . | . . . . . . . . . . . Heaviest Build 64 | 10 48 56 64 62 10 16 13 10 18 16 Greatest Support 92 | 20 43 46 92 82 18 21 20 20 20 21 Greatest Overweight (x) 2 | . 2 1 . . . . . . . . Average Overweight (x) . | . . 1 . . . . . . . . Largest Inventory Capacity 20 | . 20 20 20 20 5 5 5 5 5 5 Average Capacity 13 | . 14 20 20 6 5 5 5 5 5 5 Most Carried 20 | . 20 20 20 20 5 5 5 5 5 4 Average Carried 12 | . 11 18 19 5 5 4 5 5 4 4 Final Capacity 20 | 8 20 20 20 5 5 5 5 5 5 5 Final Carried 20 | 6 16 20 20 5 5 5 5 5 5 4 Class Distribution -------------------- 38% | Hacker-Sprinter 32% | Scavenger-Mutant 29% | Mutant Dominant Class ---------------- Mutant | -10/Materials Mutant | -9/Materials Scavenger-Mutant | -8/Materials Hacker-Sprinter | -7/Factory Hacker-Sprinter | -7/Waste Hacker-Sprinter | -7/Factory Hacker-Sprinter | -7/Lower Caves Hacker-Sprinter | -7/Lower Caves Hacker-Sprinter | -7/Data Miner Hacker-Sprinter | -6/Proximity Caves Resources | -11 -10 -9 -8 -7 -7 -7 -7 -7 -7 -6 ----------- Run | Scr Mat Mat Mat Fac Was Fac Low Low Dat Pro Matter Collected 2331 | 180 175 335 1097 55 . 385 46 . 28 30 Remotely . | . . . . . . . . . . . Salvage Created 4672 | . 660 942 2038 82 . 412 21 175 28 314 Parts 246 | . 37 58 105 8 . 22 . 7 3 6 Haulers Intercepted 8 | . 1 1 5 . . 1 . . . . Recyclers Shooed 11 | . 3 2 6 . . . . . . . Parts Field Recycled . | . . . . . . . . . . . Retrieved Matter . | . . . . . . . . . . . Parts Self-Destructed 5 | . . . . . . . . 1 . 4 Prevented . | . . . . . . . . . . . Kills | -11 -10 -9 -8 -7 -7 -7 -7 -7 -7 -6 ------- Run | Scr Mat Mat Mat Fac Was Fac Low Low Dat Pro Combat Hostiles Destroyed 61 | . 14 17 25 . . 2 2 . . 1 Melee 7 | . . . 4 . . 2 . . . 1 Guns 52 | . 14 17 21 . . . . . . . AOE 2 | . . . . . . . 2 . . . Classes Destroyed 13 | . 5 4 2 . . 2 . . . . Worker 7 | . . 3 1 2 . 1 . . . . Builder 3 | . . 1 1 . . 1 . . . . Tunneler 1 | . . . . . . 1 . . . . Hauler 8 | . 1 1 5 . . 1 . . . . Recycler 14 | . 3 3 5 . . 3 . . . . Operator 6 | . 1 2 3 . . . . . . . Watcher 4 | . . . 3 1 . . . . . . Swarmer 14 | . 9 3 . . . . 2 . . . Grunt 32 | . 5 10 17 . . . . . . . Duelist 4 | . . 2 2 . . . . . . . Sentry 7 | . . 2 5 . . . . . . . Hunter 2 | . . . 1 . . . . . . 1 Programmer 2 | . . . . . . 2 . . . . Packrat 3 | . . . . . . . . . . 3 Best Kill Streak 7 | . 7 5 5 2 . 3 2 . 1 1 Combat Bots Only 4 | . 4 3 4 . . 1 2 . . 1 Max Kills in Single Turn 2 | . 2 2 1 1 . 1 1 . 1 1 Gunslinging . | . . . . . . . . . . . Exploded 1 | . . . . . . . 1 . . . Melee 1 | . . . 1 . . 1 . . . 1 Uniques/NPCs Destroyed 1 | . . . . . . . . . 1 . Data Miner (-7/Data Miner) Combat | -11 -10 -9 -8 -7 -7 -7 -7 -7 -7 -6 -------- Run | Scr Mat Mat Mat Fac Was Fac Low Low Dat Pro Damage Taken 3562 | . 493 576 1864 . . 305 41 . 190 93 Core 518 | . 88 167 104 . . 118 41 . . . Absorbed by Shields . | . . . . . . . . . . . Redirected to Shielding 11 | . . . . . . . . . . 11 Regen/Repaired (Parts) 122 | . . . . . . 122 . . . . Core Remaining (%) 75 | 100 64 58 81 . . . . . . . Volleys Fired 260 | . 52 73 133 . . . 2 . . . Largest 2 | . 2 2 2 . . . 1 . . . Hottest 112 | . 60 79 112 . . . 36 . . . Shots Fired 518 | . 104 146 266 . . . 2 . . . Gun 516 | . 104 146 266 . . . . . . . Cannon . | . . . . . . . . . . . Launcher 2 | . . . . . . . 2 . . . Special . | . . . . . . . . . . . Kinetic 334 | . 52 97 185 . . . . . . . Thermal 182 | . 52 49 81 . . . . . . . Explosive 2 | . . . . . . . 2 . . . Electromagnetic . | . . . . . . . . . . . Robot Hit Streak 20 | . 10 20 14 . . . . . . . Robot Miss Streak 4 | . 3 4 3 . . . 3 . . . Penetration Max . | . . . . . . . . . . . Secondary Targets 7 | . 3 . 4 . . . . . . . Max Gunslinging Chain 1 | . 1 . 1 . . . . . . . Shots Hit Robots 390 | . 67 103 191 6 . 13 . 3 1 6 Core Hits 163 | . 30 38 79 2 . 8 1 1 1 3 Critical Kills . | . . . . . . . . . . . Critical Parts Destroyed 2 | . . . 2 . . . . . . . Critical Strikes 12 | . . 5 7 . . . . . . . Burn 10 | . . 5 5 . . . . . . . Destroy 2 | . . . 2 . . . . . . . Melee Attacks 99 | . . 1 16 17 . 51 . 5 1 8 Impact . | . . . . . . . . . . . Slashing 98 | . . 1 16 16 . 51 . 5 1 8 Piercing . | . . . . . . . . . . . Sneak Attacks 16 | . . . 3 3 . 7 . . 1 2 Combat Hostiles 1 | . . . . 1 . . . . . . Follow-up Attacks . | . . . . . . . . . . . Damage Inflicted 7925 | . 712 1516 3529 275 . 970 156 309 83 375 Guns 5128 | . 680 1463 2985 . . . . . . . Cannons . | . . . . . . . . . . . Explosions 156 | . . . . . . . 156 . . . Melee 2484 | . . . 472 275 . 970 . 309 83 375 Ramming 157 | . 32 53 72 . . . . . . . Kinetic 3206 | . 263 835 2108 . . . . . . . Thermal 1922 | . 417 628 877 . . . . . . . Explosive 156 | . . . . . . . 156 . . . Electromagnetic . | . . . . . . . . . . . Impact . | . . . . . . . . . . . Slashing 2484 | . . . 472 275 . 970 . 309 83 375 Piercing . | . . . . . . . . . . . Highest Corruption 2 | . 2 . 2 . . . . . . . Average Corruption 2 | . 2 . 2 . . . . . . . Corruption Purged . | . . . . . . . . . . . Corruption Blocked . | . . . . . . . . . . . Effects 14 | . 11 . 3 . . . . . . . Message Errors 4 | . 3 . 1 . . . . . . . Matter Fused 4 | . 4 . . . . . . . . . Heat Flow Errors 1 | . . . 1 . . . . . . . Energy Discharges 1 | . 1 . . . . . . . . . Data Loss (minor) 3 | . 3 . . . . . . . . . Data Loss (major) 1 | . . . 1 . . . . . . . Overload Shots . | . . . . . . . . . . . Overflow Damage 487 | . . . 74 39 . 134 50 92 . 98 Projectiles . | . . . . . . . . . . . Explosions 50 | . . . . . . . 50 . . . Melee 437 | . . . 74 39 . 134 . 92 . 98 Knockbacks 1 | . . 1 . . . . . . . . Impact 1 | . . 1 . . . . . . . . Kinetic . | . . . . . . . . . . . Secondary . | . . . . . . . . . . . Self-Inflicted Damage 169 | . . . 169 . . . . . . . Shots 2 | . . . 2 . . . . . . . Rammed 13 | . 1 6 6 . . . . . . . Targets Rammed 21 | . 6 9 6 . . . . . . . Kicked 5 | . 5 . . . . . . . . . Crushed 3 | . . 3 . . . . . . . . Highest Temperature 165 | . 76 20 165 . . 3 . . . . Average Temperature 16 | . 25 8 15 . . 2 . . . . Received Heat Transfer 1077 | . 114 174 738 . . 42 . . . 9 Siege Activations . | . . . . . . . . . . . Robots Corrupted . | . . . . . . . . . . . Combat Hostiles . | . . . . . . . . . . . Parts Fried . | . . . . . . . . . . . Impact Corruptions 1 | . . . 1 . . . . . . . Robots Melted . | . . . . . . . . . . . Combat Hostiles . | . . . . . . . . . . . Parts Melted 11 | . 1 4 6 . . . . . . . Heat Transferred 4884 | . 925 1702 2257 . . . . . . . Parts Sabotaged . | . . . . . . . . . . . Parts Stolen . | . . . . . . . . . . . Parts Stripped . | . . . . . . . . . . . Power Chain Reactions . | . . . . . . . . . . . Missiles Intercepted . | . . . . . . . . . . . Alert | -11 -10 -9 -8 -7 -7 -7 -7 -7 -7 -6 ------- Run | Scr Mat Mat Mat Fac Was Fac Low Low Dat Pro Peak Influence 568 | . 345 356 568 191 96 167 . . . . Initial 135 | . . 84 132 135 66 67 . . . . Average 173 | . 104 183 330 163 81 45 . . . . Maximum Alert Level 2 | . 1 1 2 . . . . . . . Low Security (%) 58 | . 80 48 6 100 100 100 . . . . Level 1 32 | . 19 51 65 . . . . . . . Level 2 8 | . . . 28 . . . . . . . Level 3 . | . . . . . . . . . . . Level 4 . | . . . . . . . . . . . Level 5 . | . . . . . . . . . . . High Security . | . . . . . . . . . . . Max Security . | . . . . . . . . . . . Squads Dispatched 21 | . 2 3 4 3 . 9 . . . . Investigation 11 | . 1 . . 3 . 7 . . . . Extermination 2 | . . . . . . 2 . . . . Reinforcement 8 | . 1 3 4 . . . . . . . Assault . | . . . . . . . . . . . Garrison . | . . . . . . . . . . . Intercept . | . . . . . . . . . . . Searches Triggered . | . . . . . . . . . . . Construction Impeded 1 | . . . 1 . . . . . . . Haulers Reinforced . | . . . . . . . . . . . Active Scanning Responses . | . . . . . . . . . . . Cargo Convoy Interrupts . | . . . . . . . . . . . Stealth | -11 -10 -9 -8 -7 -7 -7 -7 -7 -7 -6 --------- Run | Scr Mat Mat Mat Fac Was Fac Low Low Dat Pro Distress Signals 10 | . 3 4 3 . . . . . . . Communications Jammed . | . . . . . . . . . . . Distress Signals . | . . . . . . . . . . . Times Spotted 136 | . 25 32 49 1 6 9 4 1 4 5 Peak Tracking Total 9 | . 5 5 5 1 6 3 9 1 4 4 Tactical Retreats 16 | . 3 . 5 . . 6 1 1 . . Traps | -11 -10 -9 -8 -7 -7 -7 -7 -7 -7 -6 ------- Run | Scr Mat Mat Mat Fac Was Fac Low Low Dat Pro Traps Triggered 10 | . 2 . 3 1 . 4 . . . . Indirectly . | . . . . . . . . . . . Trap Hack Attempts . | . . . . . . . . . . . Triggered . | . . . . . . . . . . . Disarmed . | . . . . . . . . . . . Reprogrammed . | . . . . . . . . . . . Reused . | . . . . . . . . . . . Traps Extracted . | . . . . . . . . . . . Installed . | . . . . . . . . . . . Triggered 1 | . . . . . . 1 . . . . Machines | -11 -10 -9 -8 -7 -7 -7 -7 -7 -7 -6 ---------- Run | Scr Mat Mat Mat Fac Was Fac Low Low Dat Pro Machines Disabled 3 | . . 1 2 . . . . . . . Max in Single Turn 2 | . . 1 2 . . . . . . . Garrison Access 1 | . . . . . . 1 . . . . Machines Sabotaged . | . . . . . . . . . . . Garrisons Compromised . | . . . . . . . . . . . Overloaded Fab Kills . | . . . . . . . . . . . Hacking | -11 -10 -9 -8 -7 -7 -7 -7 -7 -7 -6 --------- Run | Scr Mat Mat Mat Fac Was Fac Low Low Dat Pro Machines Accessed 35 | . 5 4 5 6 . 13 . . 2 . Terminals 22 | . 5 4 4 4 . 5 . . . . Fabricators 5 | . . . . 2 . 3 . . . . Repair Stations 2 | . . . . . . 2 . . . . Recycling Units . | . . . . . . . . . . . Scanalyzers 2 | . . . 1 . . 1 . . . . Garrison Access 2 | . . . . . . 2 . . . . Total Hacks 131 | . 12 11 22 18 . 50 . . 18 . Successful 92 | . 6 4 11 13 . 40 . . 18 . Failed 37 | . 6 7 11 4 . 9 . . . . Catastrophic 3 | . . . 3 . . . . . . . Database Lockouts 2 | . . . . 1 . 1 . . . . Manual 69 | . 10 10 15 11 . 23 . . . . Terminals 71 | . 12 11 16 14 . 18 . . . . Fabricators 21 | . . . . 4 . 17 . . . . Repair Stations 9 | . . . . . . 9 . . . . Recycling Units . | . . . . . . . . . . . Scanalyzers 9 | . . . 6 . . 3 . . . . Garrison Access 3 | . . . . . . 3 . . . . Terminal Hacks 37 | . 3 1 3 6 . 6 . . 18 . Part Schematic 12 | . . . . 2 . 1 . . 9 . Robot Schematic 6 | . . . . . . . . . 6 . Robot Analysis 2 | . 1 1 . . . . . . . . Prototype ID Bank 7 | . 2 . 1 1 . . . . 3 . Level Access Points 1 | . . . . . . 1 . . . . Branch Access Points 2 | . . . . 1 . 1 . . . . Terminal Index 2 | . . . . 1 . 1 . . . . Fabricator Index 2 | . . . . 1 . 1 . . . . Unreport Threat 2 | . . . 2 . . . . . . . Locate Traps 1 | . . . . . . 1 . . . . Fabricator Hacks 15 | . . . . 2 . 13 . . . . Network Status 1 | . . . . . . 1 . . . . Load Schematic 9 | . . . . 2 . 7 . . . . Build 5 | . . . . . . 5 . . . . Repair Station Hacks 8 | . . . . . . 8 . . . . Scan Component 4 | . . . . . . 4 . . . . Repair 4 | . . . . . . 4 . . . . Recycling Unit Hacks . | . . . . . . . . . . . Scanalyzer 8 | . . . 6 . . 2 . . . . Insert Component 4 | . . . 3 . . 1 . . . . Analyze 4 | . . . 3 . . 1 . . . . Garrison Access Hacks 1 | . . . . . . 1 . . . . Seal Access 1 | . . . . . . 1 . . . . Unauthorized Hacks 23 | . 3 3 2 5 . 10 . . . . Terminals 16 | . 3 3 2 3 . 5 . . . . Track 1 | . . . . . . 1 . . . . Assimilate 1 | . . . . . . 1 . . . . Botnet 9 | . 2 2 1 2 . 2 . . . . Operators 5 | . 1 1 1 1 . 1 . . . . Fabricators 5 | . . . . 2 . 3 . . . . Report 1 | . . . . . . 1 . . . . Recompile 4 | . . . . 2 . 2 . . . . Repair Stations . | . . . . . . . . . . . Recycling Units . | . . . . . . . . . . . Scanalyzers . | . . . . . . . . . . . Garrison Access 2 | . . . . . . 2 . . . . Redirect 1 | . . . . . . 1 . . . . Watchers 1 | . . . . . . 1 . . . . Data Cores Recovered . | . . . . . . . . . . . Used . | . . . . . . . . . . . Hacking Detections 24 | . 3 4 5 3 . 9 . . . . Full Trace Events 2 | . . . . 1 . 1 . . . . Feedback Events . | . . . . . . . . . . . Feedback Blocked . | . . . . . . . . . . . Robot Schematics Acquired 6 | . . . . . . . . . 6 . Robots Built . | . . . . . . . . . . . Authchips . | . . . . . . . . . . . Time . | . . . . . . . . . . . Total Robot Build Rating . | . . . . . . . . . . . Part Schematics Acquired 16 | . . . 3 2 . 2 . . 9 . Parts Built 5 | . . . . . . 5 . . . . Authchips 4 | . . . . . . 4 . . . . Time 219 | . . . . . . 219 . . . . Total Part Build Rating 25 | . . . . . . 25 . . . . Parts Repaired 4 | . . . . . . 4 . . . . Time 231 | . . . . . . 231 . . . . Parts Recycled . | . . . . . . . . . . . Recycled Matter . | . . . . . . . . . . . Retrieved Matter . | . . . . . . . . . . . Retrieved Components . | . . . . . . . . . . . Parts Scanalyzed 4 | . . . 3 . . 1 . . . . Part Schematics Acquired 4 | . . . 3 . . 1 . . . . Parts Damaged . | . . . . . . . . . . . Bothacking | -11 -10 -9 -8 -7 -7 -7 -7 -7 -7 -6 ------------ Run | Scr Mat Mat Mat Fac Was Fac Low Low Dat Pro Used RIF Installer . | . . . . . . . . . . . Robots Hacked . | . . . . . . . . . . . Non-combat . | . . . . . . . . . . . Combat . | . . . . . . . . . . . Robot Hacks Applied . | . . . . . . . . . . . Relay Couplers Released . | . . . . . . . . . . . Fabnet Peak Effective % . | . . . . . . . . . . . Robots Rewired 1 | . . . . 1 . . . . . . Allies Hacked . | . . . . . . . . . . . Hacks Repelled . | . . . . . . . . . . . Allies | -11 -10 -9 -8 -7 -7 -7 -7 -7 -7 -6 -------- Run | Scr Mat Mat Mat Fac Was Fac Low Low Dat Pro Total Allies 1 | . . . . 1 . . . . . . Largest Group 1 | . . . . 1 . . . . . . Highest-Rated Group 30 | . . . . 30 . . . . . . Highest-Rated Ally 30 | . . . . 30 . . . . . . Total Orders 1 | . . . . 1 . . . . . . ROAM 1 | . . . . 1 . . . . . . Ally Attacks . | . . . . . . . . . . . Total Damage . | . . . . . . . . . . . Kills . | . . . . . . . . . . . Allies Corrupted . | . . . . . . . . . . . Allies Melted . | . . . . . . . . . . . Intel | -11 -10 -9 -8 -7 -7 -7 -7 -7 -7 -6 ------- Run | Scr Mat Mat Mat Fac Was Fac Low Low Dat Pro Robot Analysis Total 130 | . 1 1 . . . . . . 128 . Derelict Logs Recovered 1 | . . . . . . . . 1 . . Drone Launches . | . . . . . . . . . . . Drone Recoveries . | . . . . . . . . . . . Exploration | -11 -10 -9 -8 -7 -7 -7 -7 -7 -7 -6 ------------- Run | Scr Mat Mat Mat Fac Was Fac Low Low Dat Pro Turns Passed 6261 | . 957 1085 1781 268 37 1710 96 194 40 93 Spaces Moved 5034 | 1 446 337 777 545 114 1661 341 566 107 139 Core . | . . . . . . . . . . . Treads 1196 | . 76 337 777 6 . . . . . . Legs 371 | 1 370 . . . . . . . . . Wheels . | . . . . . . . . . . . Hover . | . . . . . . . . . . . Flight 3467 | . . . . 539 114 1661 341 566 107 139 Fastest Speed 26 | 120 120 240 155 28 28 26 26 26 26 26 Average Speed 74 | 120 169 240 157 29 28 26 26 26 26 28 Slowest Speed 260 | 120 260 240 160 156 28 28 26 26 29 29 Overloaded Moves . | . . . . . . . . . . . Propulsion Burnouts . | . . . . . . . . . . . Robots Hopped 14 | . . . . . 2 9 . . 3 . Cave-ins Triggered . | . . . . . . . . . . . Exploration Rate (%) 48 | 2 77 44 63 16 71 39 59 70 77 16 Regions Visited 10 Branch Regions 4 Pre-discovered Areas 29 | . . . . . . . . . 29 . Known Exits Taken 4 | . . . . . . 1 1 1 1 . Unknown Exits Taken 4 | 1 1 1 1 . . . . . . . Scrap Searched 5 | . . . . . . . 1 4 . . Spaces Dug 44 | . . 1 . 7 . 35 . 1 . . Terrain Destroyed 80 | . . 1 13 7 . 35 23 1 . . Melee 44 | . . 1 . 7 . 35 . 1 . . Projectile . | . . . . . . . . . . . AOE 36 | . . . 13 . . . 23 . . . Terrain Rammed . | . . . . . . . . . . . Walls Destroyed . | . . . . . . . . . . . Machines Disabled . | . . . . . . . . . . . Actions | -11 -10 -9 -8 -7 -7 -7 -7 -7 -7 -6 --------- Run | Scr Mat Mat Mat Fac Was Fac Low Low Dat Pro Total 6905 | . 557 472 1060 631 116 2829 344 604 113 179 Wait 1236 | . 14 8 29 34 3 1086 . 34 . 28 Move 5001 | . 445 336 776 545 110 1644 340 565 101 139 Hop 10 | . . . . . 1 7 . . 2 . Pick Up 59 | . 18 12 16 5 . 6 . . 2 . Fast Attach 35 | . 1 5 18 . 1 8 . . 1 1 Attach 26 | . 3 1 5 12 . 4 . . . 1 Detach . | . . . . . . . . . . . Swap 67 | . 5 11 25 2 . 18 2 . 3 1 Drop 91 | . 13 16 36 16 1 5 . . 3 1 Fire 260 | . 52 73 133 . . . 2 . . . Melee 99 | . . 1 16 17 . 51 . 5 1 8 Ram . | . . . . . . . . . . . Kick 5 | . 5 . . . . . . . . . Crush 16 | . 1 9 6 . . . . . . . Escape Stasis . | . . . . . . . . . . . Rewire . | . . . . . . . . . . . Trap . | . . . . . . . . . . . Miscellaneous . | . . . . . . . . . . . Route ------- -11/Scrapyard -10/Materials (discovered 4 exits: *Mat x2 / [*Min x2]) -9/Materials (discovered 2 exits: *Mat / [*Min]) -8/Materials (discovered 2 exits: *Fac / [*Sto]) -7/Factory (discovered 2 exits: *Low x2) -7/Waste -7/Factory (discovered 6 exits: Fac x4 / *Low x2) -7/Lower Caves -7/Lower Caves -7/Data Miner -6/Proximity Caves History --------- Turn | Location | Event 1 | -11/Scrapyard | Discovered new exit (range 0) 1 | -11/Scrapyard | Entered Materials 279 | -10/Materials | Discovered new exit (range 8) 519 | -10/Materials | Discovered new exit (range 7) 612 | -10/Materials | Build established: Scavenger-Mutant 637 | -10/Materials | Discovered new exit (range 5) 855 | -10/Materials | Discovered new exit (range 9) 958 | -10/Materials | Entered another Materials area 958 | -9/Materials | Evolved 2 slots: Utility x2 1027 | -9/Materials | Build established: Mutant 1189 | -9/Materials | Discovered new exit (range 7) 1960 | -9/Materials | Build established: Scavenger-Mutant 2012 | -9/Materials | Discovered new exit (range 8) 2043 | -9/Materials | Entered another Materials area 2043 | -8/Materials | Evolved 2 slots: Propulsion x2 3382 | -8/Materials | Discovered new exit (range 14) 3437 | -8/Materials | Discovered new exit (range 16) 3479 | -8/Materials | Build established: Mutant 3824 | -8/Materials | Entered Factory 3824 | -7/Factory | Evolved 2 slots: Utility x2 3866 | -7/Factory | Identified exit to Lower Caves 3925 | -7/Factory | Central database locked down 4092 | -7/Factory | Manually triggered Chute Trap 4092 | -7/Factory | Sucked down chute 4092 | -7/Factory | Entered Waste 4102 | -7/Waste | Spotted C-40 Crusher 4114 | -7/Waste | Spotted C-40 Crusher 4115 | -7/Waste | Spotted C-40 Crusher 4117 | -7/Waste | Spotted C-40 Crusher 4118 | -7/Waste | Spotted C-40 Crusher 4120 | -7/Waste | Discovered new exit (range 16) 4121 | -7/Waste | Spotted C-40 Crusher 4127 | -7/Waste | Build established: Hacker-Sprinter 4129 | -7/Waste | Identified exit to Factory 4129 | -7/Waste | Entered Factory 4513 | -7/Factory | Fabricated Imp. Hacking Suite (x1) 4563 | -7/Factory | Fabricated Imp. Hacking Suite (x1) 4610 | -7/Factory | Repaired Plasma Sword 4697 | -7/Factory | Identified exit to Factory 4697 | -7/Factory | Central database locked down 4839 | -7/Factory | Lost 3 parts (1p1n1w) 4896 | -7/Factory | Repaired Imp. Sensor Array 4987 | -7/Factory | Repaired Plasma Sword 5049 | -7/Factory | Repaired Imp. VTOL Module? 5252 | -7/Factory | Fabricated Imp. Hacking Suite (x1) 5345 | -7/Factory | Fabricated Imp. Hacking Suite (x1) 5395 | -7/Factory | Fabricated Imp. Hacking Suite? 5839 | -7/Factory | Entered Lower Caves 5863 | -7/Lower Caves | Encountered a Warlord checkpoint 5932 | -7/Lower Caves | Discovered new exit (range 8) 5934 | -7/Lower Caves | Identified exit to Lower Caves 5935 | -7/Lower Caves | Entered another Lower Caves area 5988 | -7/Lower Caves | Learned Factory non-interactive machine intel 6122 | -7/Lower Caves | Discovered new exit (range 15) 6126 | -7/Lower Caves | Encountered a Warlord checkpoint 6129 | -7/Lower Caves | Identified exit to Data Miner 6129 | -7/Lower Caves | Entered Data Miner 6129 | -7/Data Miner | Discovered new exit (range 6) 6134 | -7/Data Miner | Met Data Miner 6144 | -7/Data Miner | Received God Mode back door access code from Data Miner 6152 | -7/Data Miner | Destroyed Data Miner 6154 | -7/Data Miner | Found Prototype Hackware 6160 | -7/Data Miner | Found Prototype Hackware 6161 | -7/Data Miner | Interfaced with the Data Conduit 6168 | -7/Data Miner | Identified exit to Proximity Caves 6169 | -7/Data Miner | Entered Proximity Caves 6199 | -6/Proximity Caves | Lost 3 parts (1p1n1w) 6262 | -6/Proximity Caves | Self-destructed Last Messages --------------- GOAL=ESCAPE 06170_ Penetrated by Slug. 06171_ Destroyed Phase Shifter. 06173_ Penetrated by Slug. 06176_ H-66 Slayer destroyed. 06178_ Acquired Gauss Rifle. 06180_ Acquired 20 matter. 06180_ Dropped Gauss Rifle. 06181_ Flexi-carbon Leg fries itself beyond repair. 06194_ Sneak attack on JX-C02(r). 06198_ JX-C02(r) destroyed. 06201_ Acquired 10 matter. 06208_ RG-3UX(r) destroyed. 06213_ Sneak attack on KJ-Y6A(r). 06213_ Destroyed Com. Wheel. 06213_ Destroyed Lgt. Deuterium Engine. 06213_ KJ-Y6A(r) destroyed. 06247_ C-30 ARC bursts open, deploying its payload. 06247_ B-48 Gladiator unfolds itself. 06247_ G-50 Soldier unfolds itself. Map ----- +----------------------------------------------------+ | ?????????????????????????????????????????????????? | | ?????????????????????????????????????????????????? | | ?????????????????????????????????????????????????? | | ?????????????????????????????????????????????????? | | ?????????????????????????????????????????????????? | | ?????????????????????????????????????????????????? | | ?????????????????????????????????????????????????? | | ?????????????????????????????????????????????????? | | ?????????????????????????????????????????????????? | | ?????????????????????????????????????????????????? | | ?????????????????????????????????????????????????? | | ?????????????????????????????????????????????????? | | ?????????????????????????????????????????????????? | | ?????????????????????????????????????????????????? | | ?????????????????????????????????????????????????? | | ?????????????????????????????????????????????????? | | ?????????????????????????????????????????????????? | | ?????????????????????????????????????????????????? | | ?????????????????????????????????????????????????? | | ?????????????????????????????????????????????????? | | ?????????????????????????????????????????????????? | | ?????????????????????????????????????????????????? | | ?????????????????????????????????????????????????? | | ???????????????????????###???????????????????????? | | ???????????????????##?## ##???????????####???????? | | ??????????????????## ## @#??????????? ???????? | | ??????????????????# #??????????? ???????? | | ?????????????????## ###??####?????? #??????? | | ????????????????## ###### #?????? ??????? | | ????????????????# ## #?????? ##??? | | ????????????????# #???????# #?? # | | ????????????????## ##??###### ##? # | | ?????????????????## ##???# #? ## # | | ??????????????????### ##????# #? # | | ????????????????????## ##????## #?? # | | ????????????????????## #?????# ##? | | ????????????????????# ##????### ### | | ????????????????????# #??????## ## | | ???????????????####?## #####???# | | ??????????????##%=##?# # ## ##??## | | ??????????????#![[ #?# # ### #???### | | ??????????????# ### # ## #?????## | | ??????????????# # #??????##% " ### | | ??????????????## # #???#### "%"#?? | | ???????????????## ### ##?## "!#?? | | ????????????????# ### ## ### %### | | ????????????????## #?#### ## | | ?????????????????#######????# % | | ????????????????????????????## ## | | ?????????????????????????????## ### ## | +----------------------------------------------------+ Best States ------------- Heat Dissipation 69 Energy Generation 14 Energy Capacity 275 Matter Stores 300 Matter Capacity 300 Sight Range 16 Robot Scan Range 15 Terrain Scan Density 10 Armor Coverage 225 Utility Shielding 66 Evasion (%) 64 Targeting Accuracy 8 Recoil Reduction 4 Offensive Hacking 54 Authchip Count 2 Item Schematics ----------------- Hacking Suite | -8/Materials | Scanalyzed Katana | -8/Materials | Scanalyzed Imp. Medium Armor Plating | -8/Materials | Scanalyzed System Shield | -7/Factory | Hacked Antigrav System | -7/Factory | Hacked Imp. Hacking Suite | -7/Factory | Hacked Plasma Sword | -7/Factory | Scanalyzed Combat Drone Bay | -7/Data Miner | Free Lgt. Regenerative Plating | -7/Data Miner | Free Biomechanical Wings | -7/Data Miner | Free Gravity Neutralizer | -7/Data Miner | Free Antimatter Cannon | -7/Data Miner | Free Linear Gravjet | -7/Data Miner | Free Adv. Hacking Suite | -7/Data Miner | Free Wave Gun | -7/Data Miner | Free Field Propulsion Array | -7/Data Miner | Free Robot Schematics ------------------ H-55 Commando | -7/Data Miner | Free A-15 Conveyor | -7/Data Miner | Free L-41 Fighter | -7/Data Miner | Free I-36 Angel | -7/Data Miner | Free X-62 Marksman | -7/Data Miner | Free B-48 Gladiator | -7/Data Miner | Free Fabricated ------------ Imp. Hacking Suite | x1 | -7/Factory | Authchip Imp. Hacking Suite | x1 | -7/Factory | Authchip Imp. Hacking Suite | x1 | -7/Factory | Authchip Imp. Hacking Suite | x1 | -7/Factory | Authchip Imp. Hacking Suite | x1 | -7/Factory Alien Tech Used ----------------- None Achievements -------------- None Challenges ------------ None Game ------ Seed RegenerativeRefineryCarapace Manual? 0 Play Time 00:42:20 Cumulative 748.4 hours Start 2022.07.18 @ 21:40:23 End 2022.07.19 @ 18:17:01 Sessions 3 Manual Loads 0 Difficulty Rogue Special Mode None Game No. 1147 Rogue 1147 Adventurer 0 Explorer 0 Win Type - Total 72 Types 43/1/11/12/4/0/0/1/0 Lore% 92 Gallery% 91 Achievement% 83 Wizard Run 0 Options --------- ASCII 1 Keyboard 0 Movement Numpad Keybinds 0 Fullscreen 0 Font 14/SmallcapsGlow Map View 76x50 Tactical HUD 1 Map Filters NONE Filters NONE Steam 1 RUN: c23a21ac-3a12-4c6c-866b-a9c465b25d3e